[Event "Gibraltar Amateurs A 2019"]
[Site "Caleta"]
[Date "2019.01.22"]
[Round "2"]
[White "Robson, Paul E"]
[Black "Kuenitz, Klaus"]
[Result "0-1"]
[ECO "C10"]
[WhiteElo "1861"]
[BlackElo "1723"]
[Annotator "NA"]
[PlyCount "167"]
[EventDate "2019.01.18"]
[EventType "swiss"]
[EventCountry "GGB"]
[SourceTitle "playchess.com"]
[Source "ChessBase"]
[SourceQuality "1"]
[TimeControl "6600+10"]

1. e4 {[%emt 0:00:00]} e6 {[%emt 0:00:55]} 2. d4 {[%emt 0:01:16]} d5 {[%emt 0:00:09]} 3. Nd2 {[%emt 0:00:39]} dxe4 {[%emt 0:00:16]} 4. Nxe4 {[%emt 0:00:06]} Bd7 {[%emt 0:00:30]} 5. Nf3 {[%emt 0:02:26]} Bc6 {[%emt 0:00:23]} 6. Bd3 {[%emt 0:00:19]} Nd7 {[%emt 0:00:33]} 7. Qe2 {[%emt 0:01:07]} Ngf6 {[%emt 0:00:23]} 8. Ng3 {[%emt 0:10:56]} b6 {[%emt 0:03:43]} 9. O-O {[%emt 0:06:13]} Bd6 {[%emt 0:02:06]} 10. Nf5 {[%emt 0:10:46]} O-O {[%emt 0:16:07]} 11. Nxd6 {[%emt 0:02:44]} cxd6 {[%emt 0:00:10]} 12. Bg5 {[%emt 0:09:22]} Qc7 {[%emt 0:04:21]} 13. c4 {[%emt 0:06:35]} Qb7 {[%emt 0:01:13]} 14. Ne1 {[%emt 0:01:13]} Rfe8 {[%emt 0:01:07]} 15. f3 {[%emt 0:00:37]} d5 {[%emt 0:01:10]} 16. b3 {[%emt 0:03:14]} e5 {[%emt 0:02:38]} 17. cxd5 {[%emt 0:06:38]} Bxd5 {[%emt 0:00:24]} 18. Ba6 {[%emt 0:03:46]} Qc7 {[%emt 0:02:33]} 19. Rc1 {[%emt 0:01:05]} Qd6 {[%emt 0:00:29]} 20. dxe5 {[%emt 0:02:00]} Rxe5 {[%emt 0:01:32]} 21. Qd2 {[%emt 0:00:37]} Qa3 {[%emt 0:02:09]} 22. Bd3 {[%emt 0:17:00]} Ree8 {[%emt 0:05:08]} 23. Bb1 {[%emt 0:02:24]} Rac8 {[%emt 0:01:32]} 24. Nd3 {[%emt 0:02:26]} Bb7 {[%emt 0:04:26]} 25. Rxc8 {[%emt 0:03:25]} Rxc8 {[%emt 0:00:25]} 26. Rc1 {[%emt 0:02:59]} Rxc1+ {[%emt 0:00:25]} 27. Qxc1 {[%emt 0:00:35]} Qxc1+ {[%emt 0:00:24]} 28. Nxc1 {[%emt 0:00:24]} h6 {[%emt 0:00:10]} 29. Bd2 {[%emt 0:00:29]} Nd5 {[%emt 0:01:17]} 30. Nd3 {[%emt 0:00:45]} Kf8 {[%emt 0:01:01]} 31. Kf2 {[%emt 0:00:20]} Ke7 {[%emt 0:00:23]} 32. Nf4 {[%emt 0:00:54]} N7f6 {[%emt 0:02:06]} 33. Ne2 {[%emt 0:00:26]} h5 {[%emt 0:00:43]} 34. Nd4 {[%emt 0:00:59]} g6 {[%emt 0:01:00]} 35. Bd3 {[%emt 0:00:09]} a6 {[%emt 0:00:46]} 36. Nc2 {[%emt 0:02:54]} Kd6 {[%emt 0:01:00]} 37. Nb4 {[%emt 0:00:39]} a5 {[%emt 0:00:13]} 38. Nc2 {[%emt 0:00:40]} Kc5 {[%emt 0:01:27]} 39. Bh6 {[%emt 0:01:22]} Nd7 {[%emt 0:02:45]} 40. Bg7 {[%emt 0:00:18]} N5f6 {[%emt 0:01:46]} 41. Ke3 {[%emt 0:01:58]} Bd5 {[%emt 0:00:43]} 42. Kd2 {[%emt 0:00:43]} Be6 {[%emt 0:01:26]} 43. Bh6 {[%emt 0:01:06]} Nd5 {[%emt 0:00:45]} 44. Bg5 {[%emt 0:01:20]} f6 {[%emt 0:00:23]} 45. Bh4 {[%emt 0:00:07]} Ne5 {[%emt 0:00:51]} 46. Bf2+ {[%emt 0:00:10]} Kd6 {[%emt 0:01:17]} 47. Nd4 {[%emt 0:00:10]} Nxd3 {[%emt 0:00:55]} 48. Kxd3 {[%emt 0:00:16]} Bf7 {[%emt 0:02:59]} 49. Bg3+ {[%emt 0:00:11]} Kc5 {[%emt 0:00:31]} 50. Nc2 {[%emt 0:00:14]} g5 {[%emt 0:01:35]} 51. Bf2+ {[%emt 0:00:07]} Kd6 {[%emt 0:00:22]} 52. Bg3+ {[%emt 0:00:11]} Kc6 {[%emt 0:01:26]} 53. Nd4+ {[%emt 0:00:50]} Kc5 {[%emt 0:00:46]} 54. Nc2 {[%emt 0:00:02]} Bg6+ {[%emt 0:00:21]} 55. Kd2 {[%emt 0:00:09]} Bxc2 {[%emt 0:00:19]} 56. Kxc2 {[%emt 0:00:00]} Ne3+ {[%emt 0:00:12]} 57. Kd3 {[%emt 0:00:13]} Nxg2 {[%emt 0:00:21]} 58. Ke4 {[%emt 0:00:04]} Nf4 {[%emt 0:10:08]} 59. Bxf4 {[%emt 0:00:11]} gxf4 {[%emt 0:00:09]} 60. Kxf4 {[%emt 0:00:02]} Kb4 {[%emt 0:00:13]} 61. Kf5 {[%emt 0:00:02]} Ka3 {[%emt 0:00:37]} 62. Kxf6 {[%emt 0:00:01]} Kxa2 {[%emt 0:00:14]} 63. f4 {[%emt 0:00:01]} Kxb3 {[%emt 0:00:11]} 64. f5 {[%emt 0:00:01]} a4 {[%emt 0:00:21]} 65. Kg6 {[%emt 0:01:07]} a3 {[%emt 0:00:10]} 66. f6 {[%emt 0:00:01]} a2 {[%emt 0:00:07]} 67. f7 {[%emt 0:00:01]} a1=Q {[%emt 0:00:10]} 68. f8=Q {[%emt 0:00:05]} Qg1+ {[%emt 0:00:21]} 69. Kxh5 {[%emt 0:00:04]} Qxh2+ {[%emt 0:00:33]} 70. Kg4 {[%emt 0:00:02]} Qg1+ {[%emt 0:02:02]} 71. Kh4 {[%emt 0:00:03]} Qd4+ {[%emt 0:00:13]} 72. Kg3 {[%emt 0:00:31]} Qe3+ {[%emt 0:00:32]} 73. Kg2 {[%emt 0:00:06]} Qe2+ {[%emt 0:00:23]} 74. Kg3 {[%emt 0:00:23]} b5 {[%emt 0:00:09]} 75. Qg8+ {[%emt 0:00:23]} Qc4 {[%emt 0:00:17]} 76. Qg6 {[%emt 0:00:06]} Qc3+ {[%emt 0:00:49]} 77. Kf4 {[%emt 0:00:13]} b4 {[%emt 0:01:26]} 78. Qb1+ {[%emt 0:00:08]} Ka3 {[%emt 0:00:43]} 79. Ke4 {[%emt 0:00:40]} b3 {[%emt 0:00:20]} 80. Qf1 {[%emt 0:00:18]} b2 {[%emt 0:00:50]} 81. Qb1 {[%emt 0:00:09]} Qc1 {[%emt 0:00:45]} 82. Qd3+ {[%emt 0:00:02]} Ka2 {[%emt 0:00:36]} 83. Qa6+ {[%emt 0:00:09]} Kb1 {[%emt 0:00:09]} 84. Kd3 {[%emt 0:00:33]} 0-1

[Event "Gibraltar Amateurs A 2019"]
[Site "Caleta"]
[Date "2019.01.22"]
[Round "2"]
[White "Gostelow, David W"]
[Black "Tkadlecek, Petr"]
[Result "1-0"]
[ECO "D02"]
[WhiteElo "1850"]
[BlackElo "1719"]
[Annotator "NA"]
[PlyCount "119"]
[EventDate "2019.01.18"]
[EventType "swiss"]
[EventCountry "GGB"]
[SourceTitle "playchess.com"]
[Source "ChessBase"]
[SourceQuality "1"]
[TimeControl "6600+10"]

1. d4 {[%emt 0:00:00]} Nf6 {[%emt 0:00:00]} 2. Bf4 {[%emt 0:00:00]} d5 {[%emt 0:00:52]} 3. e3 {[%emt 0:00:00]} c6 {[%emt 0:01:30]} 4. Nf3 {[%emt 0:01:12]} Nh5 {[%emt 0:03:23]} 5. Bg5 {[%emt 0:02:00]} h6 {[%emt 0:00:51]} 6. Bh4 {[%emt 0:00:03]} Bf5 {[%emt 0:01:56]} 7. Ne5 {[%emt 0:03:37]} Nf6 {[%emt 0:01:09]} 8. Nd2 {[%emt 0:02:51]} e6 {[%emt 0:01:23]} 9. Be2 {[%emt 0:02:46]} Be7 {[%emt 0:00:19]} 10. O-O {[%emt 0:04:45]} O-O {[%emt 0:00:48]} 11. Bg3 {[%emt 0:01:45]} Nbd7 {[%emt 0:00:36]} 12. c4 {[%emt 0:00:23]} Ne4 {[%emt 0:03:03]} 13. Nxe4 {[%emt 0:02:48]} Bxe4 {[%emt 0:00:55]} 14. c5 {[%emt 0:02:29]} Nxe5 {[%emt 0:01:29]} 15. Bxe5 {[%emt 0:00:12]} Bf6 {[%emt 0:00:21]} 16. Bg3 {[%emt 0:02:06]} Bg5 {[%emt 0:01:33]} 17. b4 {[%emt 0:02:08]} a6 {[%emt 0:00:29]} 18. a4 {[%emt 0:01:21]} Bh4 {[%emt 0:01:53]} 19. Bf4 {[%emt 0:03:09]} Bg5 {[%emt 0:00:41]} 20. Be5 {[%emt 0:01:22]} Bf6 {[%emt 0:00:58]} 21. Bf4 {[%emt 0:05:57]} Bg5 {[%emt 0:00:35]} 22. Bd3 {[%emt 0:02:54]} Bxf4 {[%emt 0:02:23]} 23. exf4 {[%emt 0:00:19]} Bxd3 {[%emt 0:02:04]} 24. Qxd3 {[%emt 0:00:04]} Qf6 {[%emt 0:02:10]} 25. Qe3 {[%emt 0:01:43]} Qf5 {[%emt 0:01:49]} 26. Rfe1 {[%emt 0:02:29]} Kh8 {[%emt 0:04:28]} 27. Qe5 {[%emt 0:11:16]} Qxe5 {[%emt 0:06:04]} 28. Rxe5 {[%emt 0:00:08]} g6 {[%emt 0:00:40]} 29. g4 {[%emt 0:00:24]} Rg8 {[%emt 0:01:15]} 30. Kf1 {[%emt 0:00:46]} a5 {[%emt 0:01:56]} 31. b5 {[%emt 0:00:49]} cxb5 {[%emt 0:01:39]} 32. axb5 {[%emt 0:00:02]} a4 {[%emt 0:01:12]} 33. Re3 {[%emt 0:09:52]} Ra5 {[%emt 0:01:00]} 34. b6 {[%emt 0:00:47]} Kg7 {[%emt 0:01:16]} 35. Ke2 {[%emt 0:02:21]} Kf6 {[%emt 0:00:47]} 36. Rea3 {[%emt 0:05:43]} Rga8 {[%emt 0:02:13]} 37. Kd2 {[%emt 0:00:45]} h5 {[%emt 0:02:39]} 38. f3 {[%emt 0:02:37]} Ke7 {[%emt 0:04:47]} 39. Kc3 {[%emt 0:00:51]} Kd7 {[%emt 0:05:18]} 40. Kb4 {[%emt 0:01:22]} Kc6 {[%emt 0:00:42]} 41. Rxa4 {[%emt 0:01:33]} Rxa4+ {[%emt 0:07:30]} 42. Rxa4 {[%emt 0:00:02]} Rh8 {[%emt 0:01:30]} 43. Ra2 {[%emt 0:03:35]} hxg4 {[%emt 0:09:12]} 44. fxg4 {[%emt 0:00:03]} Rg8 {[%emt 0:04:37]} 45. h4 {[%emt 0:02:32]} Rh8 {[%emt 0:01:05]} 46. Rh2 {[%emt 0:00:34]} f6 {[%emt 0:01:38]} 47. h5 {[%emt 0:02:17]} gxh5 {[%emt 0:04:51]} 48. Rxh5 {[%emt 0:00:18]} Rg8 {[%emt 0:02:24]} 49. Rh7 {[%emt 0:00:30]} Rc8 {[%emt 0:00:53]} 50. Re7 {[%emt 0:00:44]} e5 {[%emt 0:05:14]} 51. fxe5 {[%emt 0:00:26]} fxe5 {[%emt 0:00:26]} 52. dxe5 {[%emt 0:03:50]} d4 {[%emt 0:00:36]} 53. Rc7+ {[%emt 0:02:43]} Rxc7 {[%emt 0:00:54]} 54. bxc7 {[%emt 0:00:03]} Kxc7 {[%emt 0:00:10]} 55. Kc4 {[%emt 0:00:14]} d3 {[%emt 0:00:52]} 56. Kxd3 {[%emt 0:00:02]} Kd7 {[%emt 0:00:39]} 57. Kd4 {[%emt 0:00:26]} Ke7 {[%emt 0:01:44]} 58. Kd5 {[%emt 0:00:18]} Kd7 {[%emt 0:00:35]} 59. g5 {[%emt 0:00:14]} Ke7 {[%emt 0:00:12]} 60. e6 {[%emt 0:00:14]} 1-0

[Event "Gibraltar Amateurs A 2019"]
[Site "Caleta"]
[Date "2019.01.22"]
[Round "2"]
[White "Sahil Dhawan"]
[Black "Guegan, Michel"]
[Result "1-0"]
[ECO "A18"]
[WhiteElo "1843"]
[BlackElo "1708"]
[Annotator "NA"]
[PlyCount "83"]
[EventDate "2019.01.18"]
[EventType "swiss"]
[EventCountry "GGB"]
[SourceTitle "playchess.com"]
[Source "ChessBase"]
[SourceQuality "1"]
[TimeControl "6600+10"]

1. c4 {[%emt 0:00:08]} Nf6 {[%emt 0:00:02]} 2. Nc3 {[%emt 0:00:08]} e6 {[%emt 0:00:10]} 3. e4 {[%emt 0:00:07]} d5 {[%emt 0:00:08]} 4. e5 {[%emt 0:00:22]} d4 {[%emt 0:00:21]} 5. exf6 {[%emt 0:02:10]} dxc3 {[%emt 0:00:07]} 6. bxc3 {[%emt 0:00:16]} Qxf6 {[%emt 0:00:58]} 7. d4 {[%emt 0:00:34]} e5 {[%emt 0:01:26]} 8. Nf3 {[%emt 0:02:04]} exd4 {[%emt 0:01:19]} 9. Bg5 {[%emt 0:04:03]} Qg6 {[%emt 0:13:04]} 10. Bd3 {[%emt 0:01:23]} Qh5 {[%emt 0:04:29]} 11. Qe2+ {[%emt 0:02:25]} Be6 {[%emt 0:00:43]} 12. Bf5 {[%emt 0:01:08]} Nc6 {[%emt 0:04:34]} 13. Bxe6 {[%emt 0:03:46]} fxe6 {[%emt 0:00:15]} 14. Qxe6+ {[%emt 0:00:26]} Be7 {[%emt 0:03:52]} 15. cxd4 {[%emt 0:03:51]} Qf7 {[%emt 0:02:30]} 16. Qxf7+ {[%emt 0:01:42]} Kxf7 {[%emt 0:00:08]} 17. Bxe7 {[%emt 0:00:08]} Rhe8 {[%emt 0:01:42]} 18. O-O {[%emt 0:01:16]} Rxe7 {[%emt 0:00:34]} 19. Rfe1 {[%emt 0:00:07]} Rxe1+ {[%emt 0:08:52]} 20. Rxe1 {[%emt 0:00:08]} Rd8 {[%emt 0:00:45]} 21. d5 {[%emt 0:00:41]} Na5 {[%emt 0:00:30]} 22. Ne5+ {[%emt 0:02:11]} Kf6 {[%emt 0:01:53]} 23. f4 {[%emt 0:00:12]} b5 {[%emt 0:06:17]} 24. cxb5 {[%emt 0:04:48]} Rxd5 {[%emt 0:00:17]} 25. Rc1 {[%emt 0:01:01]} Rxb5 {[%emt 0:02:08]} 26. Rxc7 {[%emt 0:00:30]} Rb1+ {[%emt 0:02:58]} 27. Kf2 {[%emt 0:00:11]} Rb2+ {[%emt 0:00:17]} 28. Kg3 {[%emt 0:01:06]} h5 {[%emt 0:15:23]} 29. Rf7+ {[%emt 0:00:25]} Ke6 {[%emt 0:00:07]} 30. Rxg7 {[%emt 0:00:31]} Rxa2 {[%emt 0:00:17]} 31. Rxa7 {[%emt 0:00:35]} h4+ {[%emt 0:06:01]} 32. Kxh4 {[%emt 0:01:35]} Rxg2 {[%emt 0:00:34]} 33. Rxa5 {[%emt 0:00:06]} Rxh2+ {[%emt 0:01:55]} 34. Kg5 {[%emt 0:00:09]} Rg2+ {[%emt 0:01:07]} 35. Ng4 {[%emt 0:01:53]} Kf7 {[%emt 0:00:25]} 36. Ra7+ {[%emt 0:00:09]} Kg8 {[%emt 0:04:04]} 37. Kf5 {[%emt 0:00:15]} Rb2 {[%emt 0:00:45]} 38. Kg6 {[%emt 0:00:33]} Kf8 {[%emt 0:00:45]} 39. Rf7+ {[%emt 0:01:24]} Ke8 {[%emt 0:00:27]} 40. Nf6+ {[%emt 0:00:15]} Kd8 {[%emt 0:00:27]} 41. Rd7+ {[%emt 0:00:17]} Kc8 {[%emt 0:00:13]} 42. Rd3 {[%emt 0:00:38]} 1-0

[Event "Gibraltar Amateurs A 2019"]
[Site "Caleta"]
[Date "2019.01.22"]
[Round "2"]
[White "Olaizola, Miguel"]
[Black "Butusina, Samuel"]
[Result "1-0"]
[ECO "B08"]
[WhiteElo "1831"]
[BlackElo "1688"]
[Annotator "NA"]
[PlyCount "107"]
[EventDate "2019.01.18"]
[EventType "swiss"]
[EventCountry "GGB"]
[SourceTitle "playchess.com"]
[Source "ChessBase"]
[SourceQuality "1"]
[TimeControl "6600+10"]

1. e4 {[%emt 0:01:25]} d6 {[%emt 0:00:29]} 2. d4 {[%emt 0:00:27]} g6 {[%emt 0:00:11]} 3. Nf3 {[%emt 0:00:23]} Bg7 {[%emt 0:00:35]} 4. Bc4 {[%emt 0:00:38]} Nf6 {[%emt 0:00:20]} 5. Nbd2 {[%emt 0:01:14]} O-O {[%emt 0:01:29]} 6. O-O {[%emt 0:00:21]} Nxe4 {[%emt 0:00:22]} 7. Bxf7+ {[%emt 0:08:13]} Rxf7 {[%emt 0:00:58]} 8. Nxe4 {[%emt 0:06:27]} d5 {[%emt 0:01:22]} 9. Ned2 {[%emt 0:10:04]} Nc6 {[%emt 0:03:00]} 10. c3 {[%emt 0:00:29]} e5 {[%emt 0:01:39]} 11. dxe5 {[%emt 0:09:47]} Nxe5 {[%emt 0:03:47]} 12. Nxe5 {[%emt 0:03:36]} Bxe5 {[%emt 0:00:12]} 13. Qe2 {[%emt 0:07:27]} Qd6 {[%emt 0:06:07]} 14. Nf3 {[%emt 0:05:43]} Rxf3 {[%emt 0:03:43]} 15. Qxf3 {[%emt 0:01:38]} Bxh2+ {[%emt 0:00:06]} 16. Kh1 {[%emt 0:00:35]} Bf5 {[%emt 0:00:33]} 17. Rd1 {[%emt 0:05:01]} Re8 {[%emt 0:06:11]} 18. Qxd5+ {[%emt 0:02:15]} Qxd5 {[%emt 0:02:37]} 19. Rxd5 {[%emt 0:01:05]} Bd6 {[%emt 0:00:32]} 20. Be3 {[%emt 0:08:53]} Re4 {[%emt 0:01:29]} 21. Rd4 {[%emt 0:02:15]} Re8 {[%emt 0:01:30]} 22. Rad1 {[%emt 0:01:00]} Kf7 {[%emt 0:01:32]} 23. Bf4 {[%emt 0:05:50]} Bc5 {[%emt 0:02:13]} 24. Rd8 {[%emt 0:04:07]} Re4 {[%emt 0:00:11]} 25. Bg3 {[%emt 0:01:04]} h5 {[%emt 0:03:26]} 26. f3 {[%emt 0:06:22]} Rc4 {[%emt 0:01:30]} 27. Rh8 {[%emt 0:03:27]} Kg7 {[%emt 0:03:42]} 28. Rdd8 {[%emt 0:00:14]} Be7 {[%emt 0:00:16]} 29. Rdg8+ {[%emt 0:00:55]} Kf6 {[%emt 0:00:15]} 30. f4 {[%emt 0:01:49]} Re4 {[%emt 0:02:11]} 31. Bh4+ {[%emt 0:00:29]} Kf7 {[%emt 0:01:02]} 32. Bxe7 {[%emt 0:00:18]} Kxe7 {[%emt 0:00:04]} 33. Re8+ {[%emt 0:00:20]} Kd6 {[%emt 0:00:00]} 34. Rxe4 {[%emt 0:00:24]} Bxe4 {[%emt 0:00:02]} 35. Kg1 {[%emt 0:00:52]} Kc5 {[%emt 0:01:26]} 36. Rh7 {[%emt 0:02:02]} Kd6 {[%emt 0:00:41]} 37. Kf2 {[%emt 0:00:13]} a5 {[%emt 0:00:16]} 38. Ke3 {[%emt 0:01:22]} Bf5 {[%emt 0:01:33]} 39. Rf7 {[%emt 0:00:27]} b5 {[%emt 0:00:24]} 40. b4 {[%emt 0:01:05]} a4 {[%emt 0:01:03]} 41. Kd4 {[%emt 0:02:20]} Bb1 {[%emt 0:09:08]} 42. a3 {[%emt 0:01:02]} Bc2 {[%emt 0:00:02]} 43. Rf6+ {[%emt 0:00:48]} Ke7 {[%emt 0:00:10]} 44. Rc6 {[%emt 0:01:29]} Kd7 {[%emt 0:00:01]} 45. Rc5 {[%emt 0:00:27]} c6 {[%emt 0:00:05]} 46. g3 {[%emt 0:00:03]} Kd6 {[%emt 0:00:47]} 47. c4 {[%emt 0:00:33]} bxc4 {[%emt 0:00:12]} 48. Rxc4 {[%emt 0:00:04]} Bb3 {[%emt 0:00:09]} 49. Rc3 {[%emt 0:00:12]} Bd5 {[%emt 0:01:19]} 50. Re3 {[%emt 0:00:03]} Bf7 {[%emt 0:00:59]} 51. Re5 {[%emt 0:00:07]} Be6 {[%emt 0:01:29]} 52. Ra5 {[%emt 0:00:04]} Bb3 {[%emt 0:00:05]} 53. Ra6 {[%emt 0:00:05]} Kc7 {[%emt 0:00:47]} 54. Kc5 {[%emt 0:00:05]} 1-0

[Event "Gibraltar Amateurs A 2019"]
[Site "Caleta"]
[Date "2019.01.22"]
[Round "2"]
[White "Teh, Wee Zhun"]
[Black "Stai, Sondre"]
[Result "1-0"]
[ECO "A80"]
[WhiteElo "1818"]
[BlackElo "1659"]
[Annotator "NA"]
[PlyCount "53"]
[EventDate "2019.01.18"]
[EventType "swiss"]
[EventCountry "GGB"]
[SourceTitle "playchess.com"]
[Source "ChessBase"]
[SourceQuality "1"]
[TimeControl "6600+10"]

1. d4 {[%emt 0:00:07]} f5 {[%emt 0:00:00]} 2. Nc3 {[%emt 0:00:05]} Nf6 {[%emt 0:00:42]} 3. Bf4 {[%emt 0:00:57]} e6 {[%emt 0:03:53]} 4. e3 {[%emt 0:02:00]} c6 {[%emt 0:00:29]} 5. Bd3 {[%emt 0:19:58]} d5 {[%emt 0:01:32]} 6. Nf3 {[%emt 0:01:21]} Bd6 {[%emt 0:03:23]} 7. Ne5 {[%emt 0:02:42]} O-O {[%emt 0:02:03]} 8. h3 {[%emt 0:02:21]} Ne4 {[%emt 0:03:43]} 9. O-O {[%emt 0:10:51]} Bd7 {[%emt 0:13:11]} 10. Ne2 {[%emt 0:06:06]} Be8 {[%emt 0:02:12]} 11. f3 {[%emt 0:00:58]} Nf6 {[%emt 0:00:55]} 12. c4 {[%emt 0:04:03]} Qe7 {[%emt 0:25:29]} 13. c5 {[%emt 0:06:09]} Bc7 {[%emt 0:00:20]} 14. Bg5 {[%emt 0:19:02]} h6 {[%emt 0:04:04]} 15. Bh4 {[%emt 0:12:11]} g5 {[%emt 0:03:09]} 16. Bg3 {[%emt 0:01:16]} Nh5 {[%emt 0:05:20]} 17. Bh2 {[%emt 0:05:25]} Nd7 {[%emt 0:03:49]} 18. f4 {[%emt 0:01:56]} Nhf6 {[%emt 0:13:56]} 19. Nc3 {[%emt 0:05:20]} Ne4 {[%emt 0:03:19]} 20. Nxe4 {[%emt 0:02:33]} dxe4 {[%emt 0:00:44]} 21. Bc4 {[%emt 0:00:49]} gxf4 {[%emt 0:07:21]} 22. exf4 {[%emt 0:02:02]} Nf6 {[%emt 0:00:59]} 23. Qb3 {[%emt 0:01:13]} Nd5 {[%emt 0:04:04]} 24. Bxd5 {[%emt 0:00:29]} exd5 {[%emt 0:01:13]} 25. Qb4 {[%emt 0:00:38]} b6 26. Qxb6 {[%emt 0:00:10]} Rb8 {[%emt 0:03:53]} 27. Qb7 {[%emt 0:00:05]} 1-0

[Event "Gibraltar Amateurs A 2019"]
[Site "Caleta"]
[Date "2019.01.22"]
[Round "2"]
[White "Sharma Pankaj"]
[Black "Sagar Siya"]
[Result "1-0"]
[ECO "D74"]
[WhiteElo "1809"]
[BlackElo "1616"]
[Annotator "NA"]
[PlyCount "47"]
[EventDate "2019.01.18"]
[EventType "swiss"]
[EventCountry "GGB"]
[SourceTitle "playchess.com"]
[Source "ChessBase"]
[SourceQuality "1"]
[TimeControl "6600+10"]

1. Nf3 {[%emt 0:00:00]} Nf6 {[%emt 0:00:20]} 2. d4 {[%emt 0:00:00]} g6 {[%emt 0:00:16]} 3. c4 {[%emt 0:00:22]} Bg7 {[%emt 0:00:18]} 4. g3 {[%emt 0:00:05]} O-O {[%emt 0:00:23]} 5. Bg2 {[%emt 0:00:02]} d5 {[%emt 0:00:20]} 6. cxd5 {[%emt 0:00:05]} Nxd5 {[%emt 0:00:06]} 7. O-O {[%emt 0:00:08]} Nd7 {[%emt 0:02:35]} 8. e4 {[%emt 0:05:07]} N5f6 {[%emt 0:01:21]} 9. Nc3 {[%emt 0:00:25]} e6 {[%emt 0:01:53]} 10. Bf4 {[%emt 0:04:43]} Nh5 {[%emt 0:04:24]} 11. Bg5 {[%emt 0:02:06]} f6 {[%emt 0:02:16]} 12. Be3 {[%emt 0:00:45]} f5 {[%emt 0:01:47]} 13. exf5 {[%emt 0:00:20]} exf5 {[%emt 0:01:30]} 14. Ng5 {[%emt 0:01:39]} Qe8 {[%emt 0:05:54]} 15. Ne6 {[%emt 0:03:41]} Nb6 {[%emt 0:04:00]} 16. Nxc7 {[%emt 0:01:24]} Qe7 {[%emt 0:00:53]} 17. Nxa8 {[%emt 0:00:14]} Nxa8 {[%emt 0:00:28]} 18. Re1 {[%emt 0:01:55]} Qd8 {[%emt 0:01:33]} 19. Rc1 {[%emt 0:11:54]} f4 {[%emt 0:01:01]} 20. Bxf4 {[%emt 0:01:38]} Nxf4 {[%emt 0:00:22]} 21. gxf4 {[%emt 0:00:02]} Rxf4 {[%emt 0:01:14]} 22. Nd5 {[%emt 0:00:23]} Rxd4 {[%emt 0:01:47]} 23. Qxd4 {[%emt 0:00:53]} Bxd4 {[%emt 0:00:42]} 24. Rxc8 {[%emt 0:00:03]} 1-0

[Event "Gibraltar Amateurs A 2019"]
[Site "Caleta"]
[Date "2019.01.22"]
[Round "2"]
[White "Mircov, Nicola-Alexandar"]
[Black "Evenshaug, Amadeus Hestvik"]
[Result "1-0"]
[ECO "B13"]
[WhiteElo "1797"]
[BlackElo "1383"]
[Annotator "NA"]
[PlyCount "40"]
[EventDate "2019.01.18"]
[EventType "swiss"]
[EventCountry "GGB"]
[SourceTitle "playchess.com"]
[Source "ChessBase"]
[SourceQuality "1"]
[TimeControl "6600+10"]

1. e4 {[%emt 0:03:45]} c6 {[%emt 0:00:36]} 2. d4 {[%emt 0:00:05]} d5 {[%emt 0:00:07]} 3. exd5 {[%emt 0:00:03]} cxd5 {[%emt 0:00:07]} 4. c4 {[%emt 0:00:03]} e6 {[%emt 0:00:18]} 5. Nc3 {[%emt 0:00:04]} Bb4 {[%emt 0:01:29]} 6. Qg4 {[%emt 0:03:22]} Qf6 {[%emt 0:08:03]} 7. cxd5 {[%emt 0:03:36]} Ne7 {[%emt 0:14:52]} 8. Bb5+ {[%emt 0:02:17]} Kf8 {[%emt 0:04:28]} 9. dxe6 {[%emt 0:21:47]} Bxe6 {[%emt 0:02:49]} 10. Qf4 {[%emt 0:06:28]} Qxf4 {[%emt 0:02:37]} 11. Bxf4 {[%emt 0:00:33]} Nd5 {[%emt 0:00:07]} 12. Bd2 {[%emt 0:00:13]} Ke7 {[%emt 0:07:55]} 13. Nxd5+ {[%emt 0:00:21]} Bxd5 {[%emt 0:01:53]} 14. Bxb4+ {[%emt 0:00:04]} Kf6 {[%emt 0:00:24]} 15. f3 {[%emt 0:00:40]} a6 {[%emt 0:00:04]} 16. Ba4 {[%emt 0:00:26]} b5 {[%emt 0:00:11]} 17. Bb3 {[%emt 0:00:25]} Re8+ {[%emt 0:00:09]} 18. Kf2 {[%emt 0:00:15]} Bxb3 {[%emt 0:00:50]} 19. axb3 {[%emt 0:00:04]} Nc6 {[%emt 0:00:08]} 20. Bc5 {[%emt 0:00:08]} Re6 {[%emt 0:00:13]} 1-0

[Event "Gibraltar Amateurs A 2019"]
[Site "Caleta"]
[Date "2019.01.22"]
[Round "2"]
[White "Christophe-hayot, Romain"]
[Black "Leimeister, Winfried"]
[Result "1-0"]
[ECO "A43"]
[WhiteElo "1729"]
[BlackElo "1870"]
[Annotator "NA"]
[PlyCount "107"]
[EventDate "2019.01.18"]
[EventType "swiss"]
[EventCountry "GGB"]
[SourceTitle "playchess.com"]
[Source "ChessBase"]
[SourceQuality "1"]
[TimeControl "6600+10"]

1. d4 {[%emt 0:00:00]} Nf6 {[%emt 0:00:05]} 2. Nc3 {[%emt 0:01:24]} c5 {[%emt 0:00:49]} 3. d5 {[%emt 0:01:46]} g6 {[%emt 0:00:48]} 4. g3 {[%emt 0:00:52]} d6 {[%emt 0:01:09]} 5. Bg2 {[%emt 0:00:19]} Bg7 {[%emt 0:00:11]} 6. Nf3 {[%emt 0:01:29]} Bd7 {[%emt 0:01:25]} 7. a4 {[%emt 0:00:40]} O-O {[%emt 0:01:23]} 8. O-O {[%emt 0:00:15]} Qc8 {[%emt 0:05:50]} 9. Re1 {[%emt 0:00:22]} Na6 {[%emt 0:01:09]} 10. e4 {[%emt 0:04:01]} Bh3 {[%emt 0:07:39]} 11. Nb5 {[%emt 0:05:57]} Bxg2 {[%emt 0:10:40]} 12. Kxg2 {[%emt 0:00:19]} Nc7 {[%emt 0:04:26]} 13. Na3 {[%emt 0:04:56]} Nd7 {[%emt 0:07:56]} 14. Nc4 {[%emt 0:00:44]} Nb6 {[%emt 0:00:20]} 15. Ne3 {[%emt 0:01:16]} Nd7 {[%emt 0:02:23]} 16. c3 {[%emt 0:02:30]} b6 {[%emt 0:04:06]} 17. Qd3 {[%emt 0:03:39]} a6 {[%emt 0:03:11]} 18. Bd2 {[%emt 0:00:51]} b5 {[%emt 0:00:41]} 19. h4 {[%emt 0:08:22]} c4 {[%emt 0:07:53]} 20. Qc2 {[%emt 0:00:49]} Nc5 {[%emt 0:00:11]} 21. a5 {[%emt 0:01:09]} Nb3 {[%emt 0:01:29]} 22. Ra3 {[%emt 0:00:15]} h6 {[%emt 0:07:50]} 23. h5 {[%emt 0:00:27]} e5 {[%emt 0:03:11]} 24. dxe6 {[%emt 0:08:13]} Qxe6 {[%emt 0:00:18]} 25. Nh4 {[%emt 0:02:04]} Bf6 {[%emt 0:07:58]} 26. Nf3 {[%emt 0:06:29]} Kg7 {[%emt 0:01:59]} 27. Rh1 {[%emt 0:09:30]} Rh8 {[%emt 0:00:51]} 28. Re1 {[%emt 0:03:22]} Rae8 {[%emt 0:02:24]} 29. hxg6 {[%emt 0:02:38]} fxg6 {[%emt 0:01:07]} 30. Nf1 {[%emt 0:00:35]} Rhf8 {[%emt 0:02:10]} 31. N1h2 {[%emt 0:00:40]} Qd7 {[%emt 0:01:11]} 32. Rxb3 {[%emt 0:00:49]} cxb3 {[%emt 0:00:16]} 33. Qxb3 {[%emt 0:00:08]} Qf7 {[%emt 0:04:08]} 34. Qc2 {[%emt 0:01:05]} Be5 {[%emt 0:02:07]} 35. Be3 {[%emt 0:00:33]} Qe6 {[%emt 0:04:29]} 36. Qd2 {[%emt 0:01:23]} g5 {[%emt 0:01:22]} 37. Bb6 {[%emt 0:00:11]} Re7 {[%emt 0:00:35]} 38. Nd4 {[%emt 0:00:04]} Qd7 {[%emt 0:00:50]} 39. Qe2 {[%emt 0:00:10]} Kg6 {[%emt 0:01:55]} 40. Rh1 {[%emt 0:00:29]} Bg7 {[%emt 0:00:29]} 41. Qd3 {[%emt 0:00:49]} Be5 {[%emt 0:00:40]} 42. f3 {[%emt 0:02:04]} Ne6 {[%emt 0:00:57]} 43. Nf5 {[%emt 0:00:26]} Rh7 {[%emt 0:00:16]} 44. Ng4 {[%emt 0:00:48]} h5 {[%emt 0:00:21]} 45. Nge3 {[%emt 0:03:19]} Ng7 {[%emt 0:01:37]} 46. Nxg7 {[%emt 0:01:31]} Rxg7 {[%emt 0:00:06]} 47. Nd5 {[%emt 0:00:29]} Qf7 {[%emt 0:00:13]} 48. Rf1 {[%emt 0:00:16]} Qb7 {[%emt 0:00:32]} 49. Rh1 {[%emt 0:00:56]} Qf7 {[%emt 0:00:09]} 50. Rf1 {[%emt 0:01:31]} Qb7 {[%emt 0:00:06]} 51. b3 {[%emt 0:01:00]} Kh6 {[%emt 0:00:01]} 52. Be3 {[%emt 0:00:35]} Qf7 {[%emt 0:00:30]} 53. Qd2 {[%emt 0:01:52]} Rg6 {[%emt 0:02:22]} 54. Bd4 1-0